fUST/lending_fUST_20260501
["ID","MTS","AMOUNT","RATE_DAILY","PERIOD"]
[421409076,1777579839000,-151.0,0.000184,2]
[421409074,1777579839000,-261.17216892,0.000184,2]
[421409077,1777579839000,-269.0,0.00018412,2]
[421409021,1777579839000,-160.0,0.00017579,2]
[421409080,1777579839000,-170.09122794,0.000185,2]
[421409079,1777579839000,-1273.80862451,0.000185,2]
[421409065,1777579839000,-182.96,0.000183,2]
[421409051,1777579839000,-151.0,0.00018,2]
[421409078,1777579839000,-889.32440474,0.00018428,2]
[421409050,1777579839000,-281.62388671,0.00018,2]
[421409053,1777579839000,-727.24857112,0.000181,2]
[421409020,1777579839000,-178.8,0.00017532,2]
[421409017,1777579839000,-178.09,0.00017377,2]
[421409018,1777579839000,-600.0,0.00017508,2]
[421409024,1777579839000,-151.0,0.000176,2]
[421409028,1777579839000,-179.6,0.00017741,2]
[421409027,1777579839000,-727.24857112,0.000177,2]
[421409026,1777579839000,-429.672883,0.0001764,2]
[421409029,1777579839000,-889.32440474,0.00017756,2]
[421409035,1777579839000,-2230.315306,0.00017838,2]
[421409030,1777579839000,-151.0,0.0001779,2]
[421409031,1777579839000,-269.0,0.00017817,2]
[421409032,1777579839000,-160.0,0.00017836,2]
[421409033,1777579839000,-3839.510605,0.00017836,2]
[421409015,1777579839000,-151.0,0.000173,2]
[421409037,1777579839000,-500.0,0.0001788,2]
[421409034,1777579839000,-7519.02121,0.00017836,2]
[421409040,1777579839000,-151.0,0.000179,2]
[421409045,1777579839000,-172.18058726,0.00018,2]
[421409041,1777579839000,-181.23,0.00018,2]
[421409038,1777579839000,-727.24857112,0.000179,2]
[421409042,1777579839000,-1273.80862451,0.00018,2]
[421409043,1777579839000,-211.75603676,0.00018,2]
[421409044,1777579839000,-299.78987354,0.00018,2]
[421409039,1777579839000,-151.0,0.000179,2]
[421409036,1777579839000,-2397.8660702,0.00017875,2]
[421409048,1777579839000,-933.63809712,0.00018,2]
[421409047,1777579839000,-209.96181608,0.00018,2]
[421409046,1777579839000,-170.09122794,0.00018,2]
[421409117,1777579840000,-157.36578,0.00019088,2]
[421409119,1777579840000,-157.36578,0.00019088,2]
[421409114,1777579840000,-269.0,0.00019008,5]
[421409115,1777579840000,-211.42435324,0.00019078,2]
[421409118,1777579840000,-157.36578,0.00019088,2]
[421409116,1777579840000,-613.8639996,0.00019078,2]
[421409112,1777579840000,-2398.4119403,0.00018934,2]
[421409111,1777579840000,-151.0,0.000189,2]
[421409120,1777579840000,-157.36578,0.00019088,2]
[421409123,1777579840000,-1273.80862451,0.000191,2]
[421409113,1777579840000,-10000.0,0.00019,4]
[421409110,1777579840000,-151.0,0.000189,2]
[421409137,1777579840000,-500.0,0.00019178,2]
[421409122,1777579840000,-1831.84019947,0.00019088,2]
[421409134,1777579840000,-500.0,0.00019178,2]
[421409126,1777579840000,-401.4,0.000191,2]
[421409133,1777579840000,-500.0,0.00019178,2]
[421409124,1777579840000,-151.0,0.000191,2]
[421409136,1777579840000,-500.0,0.00019178,2]
[421409135,1777579840000,-500.0,0.00019178,2]
[421409129,1777579840000,-889.32440474,0.00019101,2]
[421409131,1777579840000,-155.001,0.00019177,2]
[421409139,1777579840000,-500.0,0.00019178,2]
[421409138,1777579840000,-500.0,0.00019178,2]
[421409109,1777579840000,-1273.80862451,0.000189,2]
[421409121,1777579840000,-151.0,0.00019088,2]
[421409108,1777579840000,-262.0,0.00018879,2]
[421409093,1777579840000,-325.548554,0.00018665,2]
[421409105,1777579840000,-269.0,0.00018809,2]
[421409140,1777579840000,-500.0,0.00019178,2]
[421409081,1777579840000,-933.63809712,0.000185,2]
[421409082,1777579840000,-261.17216892,0.000185,2]
[421409083,1777579840000,-151.0,0.000185,2]
[421409086,1777579840000,-183.79,0.00018538,2]
[421409085,1777579840000,-292.958783,0.00018522,2]
[421409084,1777579840000,-652.777,0.0001851,2]
[421409088,1777579840000,-151.0,0.00018539,2]
[421409089,1777579840000,-151.0,0.000186,2]
[421409090,1777579840000,-269.0,0.00018611,2]
[421409087,1777579840000,-185.14,0.00018538,2]
[421409091,1777579840000,-551.6080366,0.00018665,2]
[421409092,1777579840000,-452.2654129,0.00018665,2]
[421409096,1777579840000,-588.2509377,0.00018665,2]
[421409095,1777579840000,-456.0406255,0.00018665,2]
[421409097,1777579840000,-1273.80862451,0.000187,2]
[421409094,1777579840000,-325.432812,0.00018665,2]
[421409099,1777579840000,-261.17216892,0.000187,2]
[421409098,1777579840000,-933.63809712,0.000187,2]
[421409101,1777579840000,-5235.696279,0.00018728,2]
[421409102,1777579840000,-2869.6648229,0.00018794,2]
[421409100,1777579840000,-151.0,0.000187,2]
[421409103,1777579840000,-366.95546232,0.00018794,2]
[421409106,1777579840000,-442.0,0.0001885,2]
[421409104,1777579840000,-151.0,0.000188,2]
[421409107,1777579840000,-185.0,0.0001885,2]
[421409141,1777579840000,-1667.99,0.00019178,2]
[421409170,1777579840000,-500.0,0.00019178,2]
[421409144,1777579840000,-755.21,0.00019178,2]
[421409182,1777579840000,-500.0,0.00019178,2]
[421409187,1777579840000,-572.79,0.00019178,2]
[421409183,1777579840000,-500.0,0.00019178,2]
[421409184,1777579840000,-569.43,0.00019178,2]
[421409181,1777579840000,-500.0,0.00019178,2]
[421409190,1777579840000,-2204.79,0.00019178,2]
[421409188,1777579840000,-500.0,0.00019178,2]
[421409186,1777579840000,-500.0,0.00019178,2]
[421409189,1777579840000,-500.0,0.00019178,2]
[421409192,1777579840000,-500.0,0.00019178,2]
[421409202,1777579840000,-500.0,0.00019178,2]
[421409198,1777579840000,-1447.57,0.00019178,2]
[421409193,1777579840000,-500.0,0.00019178,2]
[421409196,1777579840000,-500.0,0.00019178,2]
[421409194,1777579840000,-565.69,0.00019178,2]
[421409200,1777579840000,-738.17,0.00019178,2]
[421409199,1777579840000,-500.0,0.00019178,2]
[421409197,1777579840000,-482.74684208,0.00019178,2]
[421409195,1777579840000,-500.0,0.00019178,2]
[421409201,1777579840000,-500.0,0.00019178,2]
[421409203,1777579840000,-500.0,0.00019178,2]
[421409204,1777579840000,-575.05,0.00019178,2]
[421409205,1777579840000,-500.0,0.00019178,2]
[421409207,1777579840000,-1533.74,0.00019178,2]
[421409142,1777579840000,-500.0,0.00019178,2]
[421409185,1777579840000,-500.0,0.00019178,2]
[421409180,1777579840000,-612.41,0.00019178,2]
[421409191,1777579840000,-500.0,0.00019178,2]
[421409177,1777579840000,-500.0,0.00019178,2]
[421409179,1777579840000,-500.0,0.00019178,2]
[421409145,1777579840000,-500.0,0.00019178,2]
[421409143,1777579840000,-500.0,0.00019178,2]
[421409147,1777579840000,-500.0,0.00019178,2]
[421409150,1777579840000,-647.5,0.00019178,2]
[421409156,1777579840000,-3143.84,0.00019178,2]
[421409152,1777579840000,-1322.6,0.00019178,2]
[421409166,1777579840000,-604.69,0.00019178,2]
[421409161,1777579840000,-500.0,0.00019178,2]
[421409165,1777579840000,-975.96,0.00019178,2]
[421409163,1777579840000,-500.0,0.00019178,2]
[421409158,1777579840000,-500.0,0.00019178,2]
[421409154,1777579840000,-946.17,0.00019178,2]
[421409162,1777579840000,-500.0,0.00019178,2]
[421409175,1777579840000,-602.44,0.00019178,2]
[421409164,1777579840000,-751.62,0.00019178,2]
[421409176,1777579840000,-500.0,0.00019178,2]
[421409206,1777579840000,-511.87,0.00019178,2]
[421409174,1777579840000,-1131.12,0.00019178,2]
[421409173,1777579840000,-653.97,0.00019178,2]
[421409172,1777579840000,-500.0,0.00019178,2]
[421409169,1777579840000,-983.11,0.00019178,2]
[421409167,1777579840000,-500.0,0.00019178,2]
[421409178,1777579840000,-647.83,0.00019178,2]
[421409168,1777579840000,-961.76,0.00019178,2]
[421409171,1777579840000,-500.0,0.00019178,2]
[421409245,1777579841000,-530.08,0.00019178,2]
[421409248,1777579841000,-712.17,0.00019178,2]
[421409249,1777579841000,-500.0,0.00019178,2]
[421409244,1777579841000,-500.0,0.00019178,2]
[421409247,1777579841000,-1867.0,0.00019178,2]
[421409240,1777579841000,-684.38,0.00019178,2]
[421409241,1777579841000,-2565.06,0.00019178,2]
[421409242,1777579841000,-460.03152829,0.00019178,2]
[421409239,1777579841000,-500.0,0.00019178,2]
[421409250,1777579841000,-500.0,0.00019178,2]
[421409246,1777579841000,-500.0,0.00019178,2]
[421409243,1777579841000,-500.0,0.00019178,2]
[421409251,1777579841000,-500.0,0.00019178,2]
[421409265,1777579841000,-1068.64,0.00019178,2]
[421409256,1777579841000,-500.0,0.00019178,2]
[421409262,1777579841000,-772.02,0.00019178,2]
[421409253,1777579841000,-500.0,0.00019178,2]
[421409252,1777579841000,-500.0,0.00019178,2]
[421409255,1777579841000,-500.0,0.00019178,2]
[421409258,1777579841000,-763.29,0.00019178,2]
[421409261,1777579841000,-1678.36,0.00019178,2]
[421409257,1777579841000,-500.0,0.00019178,2]
[421409260,1777579841000,-500.0,0.00019178,2]
[421409259,1777579841000,-738.46,0.00019178,2]
[421409267,1777579841000,-979.55,0.00019178,2]
[421409231,1777579841000,-293.35379467,0.00019178,2]
[421409254,1777579841000,-500.0,0.00019178,2]
[421409236,1777579841000,-226.72983425,0.00019178,2]
[421409213,1777579841000,-806.17,0.00019178,2]
[421409234,1777579841000,-500.0,0.00019178,2]
[421409214,1777579841000,-500.0,0.00019178,2]
[421409263,1777579841000,-500.0,0.00019178,2]
[421409209,1777579841000,-1080.96,0.00019178,2]
[421409211,1777579841000,-500.0,0.00019178,2]
[421409210,1777579841000,-1037.11,0.00019178,2]
[421409208,1777579841000,-358.15,0.00019178,2]
[421409212,1777579841000,-500.0,0.00019178,2]
[421409216,1777579841000,-500.0,0.00019178,2]
[421409226,1777579841000,-500.0,0.00019178,2]
[421409215,1777579841000,-500.0,0.00019178,2]
[421409218,1777579841000,-639.71,0.00019178,2]
[421409217,1777579841000,-500.0,0.00019178,2]
[421409220,1777579841000,-550.81571006,0.00019178,2]
[421409219,1777579841000,-500.0,0.00019178,2]
[421409221,1777579841000,-500.0,0.00019178,2]
[421409223,1777579841000,-877.70323467,0.00019178,2]
[421409222,1777579841000,-394.8512989,0.00019178,2]
[421409225,1777579841000,-1316.66649194,0.00019178,2]
[421409224,1777579841000,-325.80027339,0.00019178,2]
[421409228,1777579841000,-500.0,0.00019178,2]
[421409229,1777579841000,-500.0,0.00019178,2]
[421409227,1777579841000,-518.93,0.00019178,2]
[421409230,1777579841000,-500.0,0.00019178,2]
[421409238,1777579841000,-500.0,0.00019178,2]
[421409237,1777579841000,-1366.12,0.00019178,2]
[421409233,1777579841000,-631.15,0.00019178,2]
[421409235,1777579841000,-500.0,0.00019178,2]
[421409232,1777579841000,-500.0,0.00019178,2]
[421409268,1777579841000,-151.0,0.00019178,2]
[421409264,1777579841000,-584.47,0.00019178,2]
[421409274,1777579841000,-500.0,0.00019178,2]
[421409300,1777579841000,-157.365773,0.00019178,2]
[421409301,1777579841000,-500.0,0.00019178,2]
[421409304,1777579841000,-546.36,0.00019178,2]
[421409306,1777579841000,-500.0,0.00019178,2]
[421409311,1777579841000,-6706.45,0.00019178,2]
[421409303,1777579841000,-945.35,0.00019178,2]
[421409305,1777579841000,-500.0,0.00019178,2]
[421409308,1777579841000,-976.34,0.00019178,2]
[421409310,1777579841000,-500.0,0.00019178,2]
[421409307,1777579841000,-500.0,0.00019178,2]
[421409309,1777579841000,-500.0,0.00019178,2]
[421409323,1777579841000,-151.0,0.00019178,2]
[421409313,1777579841000,-500.0,0.00019178,2]
[421409312,1777579841000,-500.0,0.00019178,2]
[421409314,1777579841000,-646.78,0.00019178,2]
[421409315,1777579841000,-1880.66,0.00019178,2]
[421409322,1777579841000,-151.0,0.00019178,2]
[421409316,1777579841000,-500.0,0.00019178,2]
[421409317,1777579841000,-500.0,0.00019178,2]
[421409321,1777579841000,-151.0,0.00019178,2]
[421409320,1777579841000,-151.0,0.00019178,2]
[421409319,1777579841000,-151.0,0.00019178,2]
[421409318,1777579841000,-500.0,0.00019178,2]
[421409326,1777579841000,-199.19376,0.00019178,2]
[421409324,1777579841000,-151.0,0.00019178,2]
[421409325,1777579841000,-151.0,0.00019178,2]
[421409266,1777579841000,-151.0,0.00019178,2]
[421409297,1777579841000,-157.36578,0.00019178,2]
[421409289,1777579841000,-157.36578,0.00019178,2]
[421409302,1777579841000,-555.36,0.00019178,2]
[421409298,1777579841000,-157.36578,0.00019178,2]
[421409271,1777579841000,-151.0,0.00019178,2]
[421409270,1777579841000,-151.0,0.00019178,2]
[421409327,1777579841000,-500.0,0.00019178,2]
[421409273,1777579841000,-245.84487,0.00019178,2]
[421409272,1777579841000,-151.0,0.00019178,2]
[421409269,1777579841000,-151.0,0.00019178,2]
[421409275,1777579841000,-500.0,0.00019178,2]
[421409278,1777579841000,-576.17,0.00019178,2]
[421409293,1777579841000,-157.36578,0.00019178,2]
[421409277,1777579841000,-958.07,0.00019178,2]
[421409276,1777579841000,-500.0,0.00019178,2]
[421409280,1777579841000,-1173.18,0.00019178,2]
[421409286,1777579841000,-157.36578,0.00019178,2]
[421409281,1777579841000,-818.8,0.00019178,2]
[421409279,1777579841000,-151.0,0.00019178,2]
[421409282,1777579841000,-854.32,0.00019178,2]
[421409296,1777579841000,-157.36578,0.00019178,2]
[421409283,1777579841000,-500.0,0.00019178,2]
[421409295,1777579841000,-157.36578,0.00019178,2]
[421409287,1777579841000,-157.36578,0.00019178,2]
[421409290,1777579841000,-157.36578,0.00019178,2]
[421409292,1777579841000,-157.36578,0.00019178,2]
[421409291,1777579841000,-157.36578,0.00019178,2]
[421409299,1777579841000,-157.36578,0.00019178,2]
[421409288,1777579841000,-157.36578,0.00019178,2]
[421409284,1777579841000,-1290.22,0.00019178,2]
[421409285,1777579841000,-157.36578,0.00019178,2]
[421409294,1777579841000,-157.36578,0.00019178,2]
[421409334,1777579842000,-500.0,0.00019178,2]
[421409338,1777579842000,-623.41,0.00019178,2]
[421409335,1777579842000,-572.28,0.00019178,2]
[421409336,1777579842000,-500.0,0.00019178,2]
[421409333,1777579842000,-682.67,0.00019178,2]
[421409329,1777579842000,-500.0,0.00019178,2]
[421409331,1777579842000,-500.0,0.00019178,2]
[421409328,1777579842000,-500.0,0.00019178,2]
[421409330,1777579842000,-2235.3,0.00019178,2]
[421409348,1777579842000,-500.0,0.00019178,2]
[421409332,1777579842000,-500.0,0.00019178,2]
[421409337,1777579842000,-500.0,0.00019178,2]
[421409351,1777579842000,-1113.19,0.00019178,2]
[421409341,1777579842000,-351.85129007,0.00019178,2]
[421409345,1777579842000,-788.54,0.00019178,2]
[421409350,1777579842000,-1968.41,0.00019178,2]
[421409352,1777579842000,-315.55394652,0.00019178,2]
[421409346,1777579842000,-500.0,0.00019178,2]
[421409342,1777579842000,-500.0,0.00019178,2]
[421409349,1777579842000,-500.0,0.00019178,2]
[421409339,1777579842000,-500.0,0.00019178,2]
[421409344,1777579842000,-500.0,0.00019178,2]
[421409340,1777579842000,-500.0,0.00019178,2]
[421409347,1777579842000,-500.0,0.00019178,2]
[421409343,1777579842000,-500.0,0.00019178,2]
[421409393,1777579846000,-500.0,0.00019178,2]
[421409385,1777579846000,-150.0199,0.00016137,2]
[421409389,1777579846000,-765.00728612,0.00018794,2]
[421409390,1777579846000,-1148.10259581,0.00018794,2]
[421409386,1777579846000,-150.0199,0.00016159,2]
[421409392,1777579846000,-1498.36605348,0.00019178,2]
[421409395,1777579846000,-4512.82,0.00019178,2]
[421409391,1777579846000,-1000.0,0.00019,2]
[421409387,1777579846000,-150.0199,0.0001646,2]
[421409394,1777579846000,-500.0,0.00019178,2]
[421409396,1777579846000,-3358.72,0.00019178,2]
[421409388,1777579846000,-150.0199,0.00016482,2]
[421409397,1777579846000,-443.74874354,0.00019178,2]
[421409451,1777581032000,-300.0,0.00016088,2]
[421409452,1777581032000,-300.0,0.00016088,2]
[421409450,1777581032000,-300.0,0.00016088,2]
[421409455,1777581032000,-600.0,0.00016088,2]
[421409457,1777581032000,-2212.0,0.00016732,2]
[421409454,1777581032000,-300.0,0.00016088,2]
[421409446,1777581032000,-300.0,0.00016088,2]
[421409458,1777581032000,-1270.895,0.00016732,2]
[421409461,1777581032000,-442.0,0.00016732,2]
[421409456,1777581032000,-156.0,0.0001629,2]
[421409448,1777581032000,-300.0,0.00016088,2]
[421409435,1777581032000,-1000.0,0.00013699,2]
[421409447,1777581032000,-300.0,0.00016088,2]
[421409445,1777581032000,-300.0,0.00016088,2]
[421409444,1777581032000,-300.0,0.00016088,2]
[421409443,1777581032000,-300.0,0.00016088,2]
[421409441,1777581032000,-300.0,0.00016088,2]
[421409442,1777581032000,-300.0,0.00016088,2]
[421409436,1777581032000,-235.61360321,0.00013824,2]
[421409439,1777581032000,-737.0,0.00016087,2]
[421409438,1777581032000,-300.0,0.00016087,2]
[421409440,1777581032000,-300.0,0.00016088,2]
[421409437,1777581032000,-278.02405179,0.00015824,2]
[421409449,1777581032000,-300.0,0.00016088,2]
[421409453,1777581032000,-300.0,0.00016088,2]
[421409464,1777581032000,-160.0,0.00017288,2]
[421409459,1777581032000,-192.622,0.00016732,2]
[421409460,1777581032000,-185.0,0.00016732,2]
[421409484,1777581032000,-678.4943707,0.00018819,30]
[421409483,1777581032000,-587.3276287,0.00018819,30]
[421409481,1777581032000,-554.011,0.00018819,2]
[421409480,1777581032000,-151.0,0.00018809,2]
[421409482,1777581032000,-681.0816602,0.00018819,30]
[421409479,1777581032000,-1675.74879907,0.00018794,2]
[421409485,1777581032000,-158.76911385,0.00018976,2]
[421409486,1777581032000,-499.00419753,0.00018976,2]
[421409477,1777581032000,-764.28517471,0.000187,2]
[421409476,1777581032000,-151.0,0.00018611,2]
[421409478,1777581032000,-2230.315306,0.00018766,2]
[421409475,1777581032000,-531.5221847,0.00018541,2]
[421409471,1777581032000,-2150.738,0.00018218,2]
[421409469,1777581032000,-250.0,0.00018101,2]
[421409468,1777581032000,-764.28517471,0.00018,2]
[421409470,1777581032000,-764.28517471,0.000182,2]
[421409472,1777581032000,-764.28517471,0.000184,2]
[421409467,1777581032000,-320.43450037,0.00017824,2]
[421409463,1777581032000,-160.0,0.00017288,2]
[421409474,1777581032000,-151.0,0.00018539,2]
[421409466,1777581032000,-456.0406255,0.00017717,2]
[421409473,1777581032000,-764.28517471,0.000185,2]
[421409465,1777581032000,-720.0,0.00017696,2]
[421409462,1777581032000,-1000.0,0.00017109,2]
[421409497,1777581038000,-1117.16586605,0.00018794,2]
[421409498,1777581038000,-0.99580247,0.00018976,2]
[421409499,1777581038000,-500.0,0.00018976,2]
[421409502,1777581038000,-255.07852527,0.00018976,2]
[421409501,1777581038000,-500.0,0.00018976,2]
[421409500,1777581038000,-500.0,0.00018976,2]
[421409791,1777581043000,-468.01263152,0.00018976,2]
[421409788,1777581043000,-244.92147473,0.00018976,2]
[421409790,1777581043000,-452.31553876,0.00018976,2]
[421409789,1777581043000,-47.68446124,0.00018976,2]
[421409787,1777581043000,-744.77724403,0.00018794,2]
[421409801,1777581046000,-300.0,0.00018976,2]
[421409826,1777582232000,-226.41524694,0.00014128,2]
[421409827,1777582232000,-267.16999138,0.00016128,2]
[421409829,1777582232000,-442.0,0.0001713,2]
[421409828,1777582232000,-652.366,0.0001713,2]
[421409825,1777582232000,-1000.0,0.00013699,2]
[421409833,1777582232000,-501.17157498,0.00017171,2]
[421409834,1777582232000,-2199.9874435,0.00017171,2]
[421409831,1777582232000,-932.505187,0.00017171,2]
[421409832,1777582232000,-150.5324562,0.00017171,2]
[421409830,1777582232000,-300.0,0.0001717,2]
[421409894,1777582238000,-2130.9494828,0.00017171,2]
[421409892,1777582238000,-275.04097195,0.00017171,2]
[421409884,1777582238000,-704.220022,0.00017171,2]
[421409993,1777582243000,-300.0,0.00017513,2]
[421409997,1777582243000,-300.0,0.00017513,2]
[421410001,1777582243000,-300.0,0.00017513,2]
[421409988,1777582243000,-6397.99380059,0.00017171,2]
[421409989,1777582243000,-160.0,0.00017237,2]
[421409999,1777582243000,-300.0,0.00017513,2]
[421410000,1777582243000,-300.0,0.00017513,2]
[421409987,1777582243000,-287.41003066,0.00017171,2]
[421409992,1777582243000,-300.0,0.00017513,2]
[421409990,1777582243000,-160.0,0.00017237,2]
[421409996,1777582243000,-300.0,0.00017513,2]
[421409994,1777582243000,-300.0,0.00017513,2]
[421410009,1777582243000,-339.2471853,0.00018819,30]
[421409995,1777582243000,-300.0,0.00017513,2]
[421409998,1777582243000,-300.0,0.00017513,2]
[421410004,1777582243000,-300.0,0.00017513,2]
[421410002,1777582243000,-300.0,0.00017513,2]
[421410003,1777582243000,-300.0,0.00017513,2]
[421410006,1777582243000,-300.0,0.00017513,2]
[421410008,1777582243000,-307.92473583,0.00018128,2]
[421410005,1777582243000,-300.0,0.00017513,2]
[421409991,1777582243000,-1000.0,0.00017471,2]
[421410007,1777582243000,-600.0,0.00017513,2]
[421410018,1777582244000,-758.60273689,0.00018877,2]
[421410023,1777582244000,-758.60273689,0.00018877,2]
[421410012,1777582244000,-243.4096124,0.00018877,2]
[421410010,1777582244000,-2150.738,0.00018867,2]
[421410013,1777582244000,-404.80927135,0.00018877,2]
[421410011,1777582244000,-500.0,0.00018877,2]
[421410020,1777582244000,-758.60273689,0.00018877,2]
[421410024,1777582244000,-758.60273689,0.00018877,2]
[421410014,1777582244000,-305.37050595,0.00018877,2]
[421410016,1777582244000,-758.60273689,0.00018877,2]
[421410022,1777582244000,-758.60273689,0.00018877,2]
[421410015,1777582244000,-758.60273689,0.00018877,2]
[421410019,1777582244000,-758.60273689,0.00018877,2]
[421410021,1777582244000,-758.60273689,0.00018877,2]
[421410017,1777582244000,-758.60273689,0.00018877,2]
[421410025,1777582244000,-758.60273689,0.00018877,2]
[421410026,1777582244000,-337.52361748,0.00018877,2]
[421410028,1777582244000,-78.92088059,0.00018877,2]
[421410027,1777582244000,-421.07911941,0.00018877,2]
[421410044,1777582247000,-780.0964811,0.00018877,2]
[421410038,1777582247000,-780.0964811,0.00018877,2]
[421410039,1777582247000,-780.0964811,0.00018877,2]
[421410049,1777582247000,-151.0,0.00018878,2]
[421410034,1777582247000,-679.6818563,0.00018877,2]
[421410035,1777582247000,-149.51672195,0.00018877,2]
[421410036,1777582247000,-630.57975915,0.00018877,2]
[421410043,1777582247000,-780.0964811,0.00018877,2]
[421410037,1777582247000,-780.0964811,0.00018877,2]
[421410040,1777582247000,-780.0964811,0.00018877,2]
[421410053,1777582247000,-684.207711,0.00018878,2]
[421410047,1777582247000,-780.0964811,0.00018877,2]
[421410042,1777582247000,-780.0964811,0.00018877,2]
[421410046,1777582247000,-780.0964811,0.00018877,2]
[421410045,1777582247000,-780.0964811,0.00018877,2]
[421410048,1777582247000,-200.416465,0.00018878,2]
[421410050,1777582247000,-151.0,0.00018878,2]
[421410052,1777582247000,-151.0,0.00018878,2]
[421410051,1777582247000,-151.0,0.00018878,2]
[421410054,1777582247000,-133.07375865,0.00018878,2]
[421410041,1777582247000,-780.0964811,0.00018877,2]
[421410066,1777583373000,10000.0,0.00021918,120]
[421410067,1777583403000,10000.0,0.00021918,120]
[421410094,1777583437000,-210.0995004,0.00016794,2]
[421410091,1777583437000,-215.50506367,0.00013987,2]
[421410096,1777583437000,-442.0,0.0001713,2]
[421410090,1777583437000,-1000.0,0.00013699,2]
[421410092,1777583437000,-254.29597513,0.00015987,2]
[421410093,1777583437000,-4193.747475,0.00016,2]
[421410101,1777583437000,-151.0,0.00018187,2]
[421410097,1777583437000,-160.0,0.00017177,2]
[421410098,1777583437000,-160.0,0.00017892,2]
[421410100,1777583437000,-537.6845,0.00018187,2]
[421410099,1777583437000,-293.08688659,0.00017987,2]
[421410102,1777583437000,-151.0,0.00018187,2]
[421410095,1777583437000,-185.0,0.0001713,2]
[421410117,1777583438000,-151.0,0.00018187,2]
[421410119,1777583438000,-151.0,0.00018187,2]
[421410115,1777583438000,-151.0,0.00018187,2]
[421410118,1777583438000,-151.0,0.00018187,2]
[421410113,1777583438000,-151.0,0.00018187,2]
[421410114,1777583438000,-151.0,0.00018187,2]
[421410112,1777583438000,-151.0,0.00018187,2]
[421410109,1777583438000,-151.0,0.00018187,2]
[421410110,1777583438000,-151.0,0.00018187,2]
[421410120,1777583438000,-156.89215671,0.00018187,2]
[421410105,1777583438000,-151.0,0.00018187,2]
[421410108,1777583438000,-151.0,0.00018187,2]
[421410103,1777583438000,-151.0,0.00018187,2]
[421410106,1777583438000,-151.0,0.00018187,2]
[421410104,1777583438000,-151.0,0.00018187,2]
[421410107,1777583438000,-151.0,0.00018187,2]
[421410111,1777583438000,-151.0,0.00018187,2]
[421410121,1777583438000,-2150.738,0.00018187,2]
[421410116,1777583438000,-151.0,0.00018187,2]
[421410126,1777583438000,-548.29814501,0.00018676,2]
[421410140,1777583438000,-456.71980401,0.00018676,2]
[421410139,1777583438000,-548.29814501,0.00018676,2]
[421410137,1777583438000,-548.29814501,0.00018676,2]
[421410138,1777583438000,-548.29814501,0.00018676,2]
[421410122,1777583438000,-3767.5129482,0.00018444,2]
[421410136,1777583438000,-273.50576096,0.00018676,2]
[421410134,1777583438000,-548.29814501,0.00018676,2]
[421410132,1777583438000,-548.29814501,0.00018676,2]
[421410135,1777583438000,-274.79238405,0.00018676,2]
[421410131,1777583438000,-485.12674417,0.00018676,2]
[421410130,1777583438000,-63.17140084,0.00018676,2]
[421410129,1777583438000,-548.29814501,0.00018676,2]
[421410127,1777583438000,-548.29814501,0.00018676,2]
[421410128,1777583438000,-548.29814501,0.00018676,2]
[421410124,1777583438000,-242.88910312,0.00018578,2]